bitfinex/quotes_SOLUSD_20250619
["timestamp","ask_amount","ask_price","bid_price","bid_amount"]
[1750299639521,35.12368727,145.37,145.33,7.04368727]
[1750299639833,35.12368727,145.37,145.32,13.92464632]
[1750299640224,28.08,145.37,145.32,13.92464632]
[1750299640409,35.12368727,145.37,145.32,13.92464632]
[1750299641652,147.0,145.36,145.32,13.92464632]
[1750299641938,154.04368727,145.36,145.32,13.92464632]
[1750299642938,147.0,145.36,145.32,13.92464632]
[1750299645426,147.0,145.36,145.32,13.42464632]
[1750299645617,147.0,145.36,145.33,7.04368727]
[1750299647041,147.0,145.36,145.34,7.04368727]
[1750299647825,147.0,145.36,145.35,6.87994496]
[1750299648022,147.0,145.36,145.34,6.88023077]
[1750299648536,147.0,145.36,145.33,13.92439187]
[1750299648743,147.0,145.36,145.33,6.8807046]
[1750299648925,150.58333686,145.36,145.33,6.8807046]
[1750299649621,150.58333686,145.36,145.33,13.92439187]
[1750299649823,150.58333686,145.36,145.35,7.04368727]
[1750299650331,150.58333686,145.36,145.33,6.8807046]
[1750299650332,150.58333686,145.36,145.34,7.04368727]
[1750299650929,148.5033,145.41,145.35,7.04368727]
[1750299651130,148.5033,145.41,145.33,30.348634]
[1750299651131,19.11998727,145.44,145.39,7.04368727]
[1750299651338,45.11998727,145.44,145.39,7.04368727]
[1750299651643,31.66188075,145.43,145.39,7.04368727]
[1750299652045,3.58188075,145.43,145.4,13.92126636]
[1750299653350,7.04368727,145.42,145.38,13.92207928]
[1750299653846,35.12368727,145.42,145.38,13.92207928]
[1750299654552,28.08,145.42,145.38,13.92207928]
[1750299658145,28.08,145.42,145.39,7.04368727]
[1750299659455,28.08,145.42,145.39,13.92132555]
[1750299660432,3.58188075,145.43,145.4,7.04368727]
[1750299661534,147.0,145.42,145.41,6.87710611]
[1750299661837,147.0,145.42,145.41,13.92079338]
[1750299666042,147.0,145.42,145.4,13.92110224]
[1750299666955,147.0,145.42,145.4,6.87741497]
[1750299667156,147.0,145.42,145.4,13.92110224]
[1750299668370,147.0,145.41,145.4,13.92110224]
[1750299669960,147.0,145.41,145.39,6.87805213]
[1750299670167,147.0,145.41,145.4,7.04368727]
[1750299674273,147.0,145.41,145.4,13.92126636]
[1750299682760,147.0,145.41,145.4,7.04368727]
[1750299684274,147.0,145.4,145.37,6.87899841]
[1750299684480,147.0,145.39,145.37,13.92268568]
[1750299684667,147.0,145.39,145.38,13.92221251]
[1750299684861,147.0,145.39,145.38,6.87852524]
[1750299685062,147.0,145.39,145.36,7.04368727]
[1750299685269,182.10368727,145.39,145.34,13.92393616]
[1750299685780,7.04368727,145.38,145.33,13.9244367]
[1750299685960,28.06,145.37,145.33,13.9244367]
[1750299686595,28.06,145.37,145.34,7.04368727]
[1750299686774,154.04368727,145.39,145.31,23.30032674]
[1750299686775,28.06,145.38,145.36,6.87947165]
[1750299687077,175.06,145.39,145.36,6.87947165]
[1750299687282,175.06,145.39,145.35,13.92344061]
[1750299688684,182.10368727,145.39,145.35,13.92344061]
[1750299689883,182.10368727,145.39,145.35,6.87975334]
[1750299690086,182.10368727,145.39,145.35,13.92344061]
[1750299690265,182.10368727,145.39,145.35,6.87975334]
[1750299690469,7.04368727,145.38,145.34,13.92402561]
[1750299690667,7.04368727,145.38,145.33,13.92444845]
[1750299690984,28.06,145.37,145.33,13.92444845]
[1750299691585,35.10368727,145.38,145.33,13.92444845]
[1750299693268,35.10368727,145.38,145.34,7.04368727]
[1750299694885,147.0,145.37,145.34,7.04368727]
[1750299695266,147.0,145.37,145.34,13.92399278]
[1750299697092,182.12368727,145.36,145.31,6.88183882]
[1750299697273,182.12368727,145.36,145.31,13.92552609]
[1750299697274,147.0,145.35,145.31,13.92552609]
[1750299697779,147.0,145.34,145.31,13.92552609]
[1750299699689,147.0,145.34,145.33,7.04368727]
[1750299700197,147.0,145.34,145.32,7.04368727]
[1750299701683,147.0,145.34,145.31,13.92552609]
[1750299701888,147.0,145.34,145.32,7.04368727]
[1750299703588,147.0,145.34,145.32,13.92497946]
[1750299703793,147.0,145.33,145.32,13.92497946]
[1750299706276,147.0,145.33,145.32,6.88129219]
[1750299706479,147.0,145.33,145.32,13.92497946]
[1750299708318,147.0,145.33,145.32,32.57462832]
[1750299708489,26.0,145.39,145.32,49.77804147]
[1750299708798,3.58099468,145.38,145.35,7.04368727]
[1750299711004,3.58099468,145.38,145.35,13.92346394]
[1750299714812,147.0,145.37,145.36,7.04368727]
[1750299715919,147.0,145.37,145.36,6.87947165]
[1750299716213,147.0,145.37,145.36,13.92315892]
[1750299719811,147.0,145.37,145.35,13.92344979]
[1750299720494,147.0,145.37,145.36,7.04368727]
[1750299721404,147.0,145.37,145.36,13.92315892]
[1750299722123,147.0,145.37,145.36,6.87947165]
[1750299725209,147.0,145.37,145.36,13.92315892]
[1750299727424,147.0,145.37,145.36,6.87947165]
[1750299730015,147.0,145.37,145.32,6.1495]
[1750299730226,7.04368727,145.35,145.29,6.88278615]
[1750299730441,35.10368727,145.35,145.3,7.04368727]
[1750299730747,3.58516095,145.34,145.3,7.04368727]
[1750299732539,3.58516095,145.34,145.31,6.88183882]
[1750299732944,3.58516095,145.34,145.31,13.92552609]
[1750299733754,3.58516095,145.34,145.3,7.04368727]
[1750299733755,10.62884822,145.34,145.3,7.04368727]
[1750299733934,7.04368727,145.33,145.29,13.92647342]
[1750299734119,28.06,145.33,145.29,13.92647342]
[1750299739341,147.0,145.32,145.29,13.92647342]
[1750299739543,147.0,145.31,145.29,13.92647342]
[1750299740563,147.0,145.31,145.3,7.04368727]
[1750299742740,147.0,145.31,145.3,13.92599972]
[1750299746249,147.0,145.31,145.3,32.57564858]
[1750299747152,6.0,145.34,145.3,49.78142972]
[1750299747336,147.0,145.36,145.33,7.04368727]
[1750299747536,150.5844517,145.36,145.34,7.04368727]
[1750299748035,150.5844517,145.36,145.35,7.04368727]
[1750299748337,147.0,145.36,145.35,7.04368727]
[1750299750048,147.0,145.36,145.34,7.04368727]
[1750299751948,147.0,145.36,145.34,13.92382792]
[1750299752549,147.0,145.36,145.34,6.88014065]
[1750299752753,147.0,145.36,145.34,13.92382792]
[1750299753842,175.06,145.36,145.31,6.88183882]
[1750299754043,185.68813544,145.36,145.31,13.92552609]
[1750299754874,7.04368727,145.33,145.29,7.04368727]
[1750299755034,28.06,145.32,145.28,7.04368727]
[1750299755933,28.06,145.32,145.28,13.92657692]
[1750299756241,28.06,145.32,145.29,7.04368727]
[1750299758653,28.06,145.32,145.28,13.92657692]
[1750299765054,35.10368727,145.32,145.28,7.04368727]
[1750299765863,147.0,145.31,145.27,7.04368727]
[1750299766974,147.0,145.31,145.28,6.88325991]
[1750299769875,147.0,145.31,145.26,6.88420762]
[1750299769876,35.10368727,145.3,145.26,6.88420762]
[1750299770247,147.0,145.29,145.26,6.88420762]
[1750299774373,150.58697734,145.29,145.26,6.88420762]
[1750299774561,157.63066461,145.29,145.26,6.88420762]
[1750299774760,147.0,145.28,145.26,6.88420762]
[1750299776970,147.0,145.28,145.25,7.04368727]
[1750299778373,147.0,145.27,145.25,7.04368727]
[1750299778579,147.0,145.26,145.25,7.04368727]
[1750299779400,147.0,145.26,145.23,24.09970391]
[1750299779567,147.0,145.26,145.25,7.04368727]
[1750299781887,147.0,145.26,145.25,13.92836885]
[1750299783588,147.0,145.26,145.23,24.09970391]
[1750299783780,147.0,145.26,145.25,7.04368727]
[1750299785172,147.0,145.26,145.25,13.92836885]
[1750299786800,147.0,145.26,145.25,4.50855475]
[1750299789084,147.0,145.26,145.25,11.39323633]
[1750299800190,147.0,145.26,145.25,6.88468158]
[1750299800395,147.0,145.26,145.23,11.39388222]
[1750299800595,147.0,145.25,145.21,4.50855475]
[1750299800794,147.0,145.24,145.21,4.50855475]
[1750299801305,175.06,145.24,145.21,11.39483057]
[1750299803003,147.0,145.24,145.23,4.50855475]
[1750299804487,147.0,145.24,145.23,11.39418444]
[1750299809712,147.0,145.24,145.23,37.39418444]
[1750299814631,147.0,145.24,145.23,32.88562969]
[1750299814831,147.0,145.24,145.23,37.39418444]
[1750299816600,147.0,145.24,145.23,11.39418444]
[1750299816927,147.0,145.24,145.23,6.88562969]
[1750299821930,147.0,145.24,145.22,11.39445252]
[1750299822129,147.0,145.23,145.22,6.88589777]
[1750299825632,147.0,145.23,145.21,11.39505927]
[1750299826812,175.04,145.23,145.21,6.88650452]
[1750299827939,147.0,145.22,145.21,6.88650452]
[1750299828111,28.04,145.23,145.21,6.88650452]
[1750299829121,28.04,145.23,145.19,17.21880476]
[1750299829433,28.04,145.23,145.2,4.50855475]
[1750299830236,28.04,145.23,145.21,6.88657805]
[1750299834247,28.04,145.23,145.21,11.3951328]
[1750299834640,28.04,145.23,145.22,4.50855475]
[1750299834838,3.58839577,145.24,145.22,4.50855475]
[1750299835644,3.58839577,145.24,145.23,4.50855475]
[1750299835851,3.58839577,145.24,145.23,11.39418444]
[1750299839850,147.0,145.25,145.23,11.39418444]
[1750299840051,147.0,145.24,145.23,6.88562969]
[1750299840253,17.23710462,145.26,145.24,18.64964886]
[1750299840552,13.64840391,145.26,145.25,23.15820361]
[1750299841639,13.64840391,145.26,145.25,30.04288519]
[1750299842856,13.64840391,145.26,145.25,32.57623594]
[1750299843651,13.64840391,145.26,145.25,65.61814144]
[1750299843852,147.0,145.29,145.25,82.82984539]
[1750299844055,5.98,145.33,145.28,7.0419055]
[1750299844255,5.98,145.33,145.26,7.0419055]
[1750299844256,5.98,145.33,145.31,7.0419055]
[1750299844424,9.56726585,145.33,145.31,7.0419055]
[1750299844624,9.56726585,145.33,145.27,18.64964886]
[1750299844934,9.56726585,145.33,145.31,13.92362307]
[1750299845765,9.56726585,145.33,145.31,6.88171757]
[1750299846136,9.56726585,145.33,145.29,7.0419055]
[1750299846137,16.60917135,145.33,145.29,7.0419055]
[1750299846336,44.62917135,145.33,145.28,7.0419055]
[1750299846656,147.0,145.32,145.29,7.0419055]
[1750299846862,147.0,145.32,145.29,13.92451654]
[1750299848555,147.0,145.32,145.3,7.0419055]
[1750299849968,147.0,145.32,145.31,6.88183882]
[1750299850138,9.56726585,145.33,145.31,13.92374432]
[1750299850334,5.98,145.33,145.32,7.0419055]
[1750299850842,5.98,145.33,145.31,13.92374432]
[1750299851367,5.98,145.33,145.3,13.92401639]
[1750299852843,5.98,145.33,145.31,7.0419055]
[1750299853868,5.98,145.33,145.31,13.92335304]
[1750299854058,5.98,145.33,145.29,6.88278615]
[1750299854253,5.98,145.33,145.31,7.0419055]
[1750299855456,5.98,145.33,145.3,7.0419055]
[1750299855844,5.98,145.33,145.3,13.92406812]
[1750299856847,13.0219055,145.33,145.29,7.0419055]
[1750299857039,28.02,145.32,145.29,7.0419055]
[1750299858571,147.0,145.31,145.28,13.92470863]
[1750299858752,28.02,145.32,145.28,13.92470863]
[1750299858753,147.0,145.3,145.28,13.92470863]
[1750299863366,147.0,145.29,145.28,13.92470863]
[1750299863748,146.5,145.29,145.28,13.92470863]
[1750299864078,146.5,145.29,145.27,6.883642]
[1750299864376,146.5,145.29,145.27,13.9255475]
[1750299865258,146.5,145.29,145.26,6.88403951]
[1750299865660,146.5,145.29,145.26,13.92594501]
[1750299867851,3.58594944,145.35,145.3,18.64964886]
[1750299868179,3.58594944,145.35,145.34,7.0419055]
[1750299869178,3.58594944,145.35,145.29,25.23884886]
[1750299869382,3.58594944,145.35,145.33,7.0419055]
[1750299869676,3.58594944,145.35,145.34,7.0419055]
[1750299870667,3.58594944,145.35,145.34,13.92232382]
[1750299880287,3.58594944,145.35,145.34,6.88041832]
[1750299882182,3.58594944,145.35,145.33,6.88089176]
[1750299885897,3.58594944,145.35,145.32,6.88136526]
[1750299886100,3.58594944,145.35,145.32,13.92327076]
[1750299887099,147.0,145.34,145.32,13.92327076]
[1750299887595,147.0,145.34,145.33,7.0419055]
[1750299888787,147.0,145.34,145.32,7.0419055]
[1750299891293,147.0,145.34,145.32,13.9229265]
[1750299892104,147.0,145.33,145.3,7.0419055]
[1750299892288,147.0,145.32,145.3,7.0419055]
[1750299892686,150.58953883,145.32,145.3,7.0419055]
[1750299893593,150.58953883,145.32,145.3,13.9237633]
[1750299894875,150.58953883,145.32,145.31,7.0419055]
[1750299895686,150.58953883,145.32,145.31,13.92374432]
[1750299896020,3.58953883,145.32,145.31,13.92374432]
[1750299896841,3.58953883,145.32,145.31,6.88183882]
[1750299897005,3.58953883,145.32,145.31,13.92374432]
[1750299897889,5.96,145.36,145.31,31.12834138]
[1750299898114,9.54802925,145.36,145.35,7.0419055]
[1750299899024,13.58313798,145.38,145.35,7.0419055]
[1750299899202,13.58313798,145.38,145.37,7.0419055]
[1750299899921,13.58313798,145.38,145.37,13.92090391]
[1750299900232,5.96,145.41,145.37,31.11839995]
[1750299900435,9.5464573,145.41,145.4,7.0419055]
[1750299901947,9.5464573,145.41,145.4,13.91948459]
[1750299903954,3.5864573,145.41,145.4,13.91948459]
[1750299904118,147.0,145.42,145.4,13.91948459]
[1750299904313,147.0,145.42,145.41,7.0419055]
[1750299905522,5.96,145.45,145.41,7.0419055]
[1750299905725,5.96,145.45,145.44,7.0419055]
[1750299905943,9.54577683,145.45,145.44,13.91759306]
[1750299907459,147.0,145.48,145.44,13.91759306]
[1750299907759,147.0,145.48,145.47,7.0419055]
[1750299908144,147.0,145.48,145.42,17.19144464]
[1750299908344,150.58552574,145.48,145.46,7.0419055]
[1750299910774,147.0,145.47,145.44,13.91749567]
[1750299910965,147.0,145.47,145.45,7.0419055]
[1750299911552,147.0,145.47,145.46,7.0419055]
[1750299911749,147.0,145.47,145.46,13.91664769]
[1750299916758,147.0,145.47,145.43,6.87616035]
[1750299916952,147.0,145.46,145.45,7.0419055]
[1750299917559,147.0,145.46,145.45,13.91712035]
[1750299929306,147.0,145.46,145.43,42.71621009]
[1750299929503,147.0,145.46,145.45,7.0419055]
[1750299931287,147.0,145.46,145.45,13.91712035]
[1750299936314,147.0,145.46,145.45,32.56676921]
[1750299936490,147.0,145.46,145.45,38.91236921]
[1750299936695,20.677534,145.5,145.45,66.24989688]
[1750299936910,20.677534,145.5,145.49,7.0419055]
[1750299937527,20.677534,145.5,145.49,13.91523012]
[1750299937908,20.677534,145.5,145.49,6.87332462]
[1750299938134,20.677534,145.5,145.48,13.91560657]
[1750299938316,20.677534,145.5,145.49,7.0419055]
[1750299939629,20.677534,145.5,145.49,13.91523012]
[1750299943624,20.677534,145.5,145.49,6.87332462]
[1750299943938,20.677534,145.5,145.49,13.91523012]
[1750299952460,20.677534,145.5,145.49,32.56487898]
[1750299955079,20.677534,145.5,145.49,13.91523012]
[1750299957673,20.677534,145.5,145.49,6.87332462]
[1750299957985,20.677534,145.5,145.49,13.91523012]
[1750299961678,20.677534,145.5,145.47,6.8742696]
[1750299961870,20.677534,145.5,145.45,23.53255544]
[1750299961871,58.44425019,145.49,145.45,7.0419055]
[1750299962257,58.44425019,145.49,145.46,6.87474219]
[1750299962456,58.44425019,145.49,145.46,13.91664769]
[1750299962659,58.44425019,145.49,145.47,7.0419055]
[1750299963460,58.44425019,145.49,145.43,17.19040088]
[1750299963660,58.44425019,145.49,145.45,7.0419055]
[1750299963884,58.44425019,145.49,145.46,7.0419055]
[1750299964769,58.44425019,145.49,145.45,13.91674856]
[1750299964977,7.0419055,145.48,145.43,6.87616035]
[1750299965183,93.44615569,145.49,145.44,7.0419055]
[1750299966157,93.44615569,145.49,145.44,13.91722488]
[1750299966357,86.40425019,145.49,145.45,7.0419055]
[1750299966584,93.44615569,145.49,145.45,7.0419055]
[1750299966768,93.44615569,145.49,145.44,6.87531938]
[1750299966959,93.44615569,145.49,145.45,7.0419055]
[1750299967173,58.44425019,145.48,145.45,7.0419055]
[1750299967375,58.44425019,145.48,145.45,13.91705419]
[1750299967700,58.44425019,145.48,145.45,6.87514869]
[1750299967990,58.44425019,145.48,145.44,13.91742693]
[1750299969068,65.48615569,145.48,145.44,13.91742693]
[1750299969485,58.44425019,145.47,145.41,6.471]
[1750299969686,58.44425019,145.47,145.38,18.64964886]
[1750299969687,7.0419055,145.44,145.38,18.64964886]
[1750299969872,7.0419055,145.42,145.38,13.92043074]
[1750299970077,7.0419055,145.39,145.34,17.190401]
[1750299970277,7.0419055,145.39,145.34,24.2323065]
[1750299970495,35.0019055,145.4,145.35,13.92185046]
[1750299970697,35.0019055,145.4,145.36,7.0419055]
[1750299970698,27.96,145.4,145.36,7.0419055]
[1750299971499,35.0019055,145.4,145.36,13.92104696]
[1750299973679,35.0019055,145.4,145.34,25.53006718]
[1750299973899,27.96,145.4,145.35,7.0419055]
[1750299974105,27.96,145.4,145.34,25.53006718]
[1750299974106,7.0419055,145.38,145.34,13.92232382]
[1750299974691,7.0419055,145.36,145.33,6.88074172]
[1750299975102,27.96,145.38,145.33,6.88074172]
[1750299975309,7.0419055,145.37,145.33,6.88074172]
[1750299975674,7.0419055,145.37,145.33,13.92264722]
[1750299976404,7.0419055,145.37,145.33,6.88074172]
[1750299976584,7.0419055,145.35,145.32,6.88128377]
[1750299976773,7.0419055,145.35,145.28,52.21594886]
[1750299976774,7.0419055,145.35,145.3,7.0419055]
[1750299976973,7.0419055,145.33,145.29,7.0419055]
[1750299977178,8.5843055,145.35,145.3,7.0419055]
[1750299978084,8.5843055,145.35,145.31,6.88183882]
[1750299978402,8.5843055,145.35,145.29,17.20696537]
[1750299978403,7.0419055,145.34,145.29,7.0419055]
[1750299978612,7.0419055,145.33,145.29,13.92455636]
[1750299978983,1.5424,145.35,145.29,13.92455636]
[1750299978984,7.0419055,145.34,145.29,13.92455636]
[1750299979179,7.0419055,145.34,145.3,7.0419055]
[1750299979406,7.0419055,145.34,145.29,13.92455636]
[1750299980515,7.0419055,145.32,145.29,6.88265086]
[1750299980724,1.5424,145.35,145.27,6.88373373]
[1750299980725,7.0419055,145.31,145.27,6.88373373]
[1750299981212,7.0419055,145.3,145.26,60.15595635]
[1750299981384,7.0419055,145.3,145.26,67.19786185]
[1750299982205,3.5904434,145.29,145.26,67.19786185]
[1750299982410,10.6323489,145.29,145.26,53.27189186]
[1750299982595,12.2591489,145.29,145.25,6.88450899]
[1750299983979,5.2172434,145.29,145.25,13.92641449]
[1750299984406,5.2172434,145.29,145.25,6.88450899]
[1750299984703,12.2591489,145.29,145.25,6.88450899]
[1750299985986,12.2591489,145.29,145.25,7.0419055]
[1750299987211,12.2591489,145.29,145.24,7.0419055]
[1750299988007,12.2591489,145.29,145.25,6.88468158]
[1750299988008,58.44425019,145.28,145.25,6.88468158]
[1750299988398,58.44425019,145.28,145.25,13.92658708]
[1750299988603,58.44425019,145.28,145.26,7.0419055]
[1750299989590,5.2172434,145.29,145.27,7.0419055]
[1750299989591,3.5904434,145.29,145.27,7.0419055]
[1750299989791,3.5904434,145.29,145.28,7.0419055]
[1750299989990,3.5904434,145.29,145.28,13.92516541]
[1750299990716,3.5904434,145.29,145.28,6.88325991]
[1750299991297,3.5904434,145.29,145.28,13.92516541]
[1750299991705,3.5904434,145.29,145.28,6.88325991]
[1750299994205,3.5904434,145.29,145.28,13.92516541]
[1750299994918,27.98,145.31,145.28,13.92516541]
[1750299998029,27.98,145.31,145.28,6.88325991]
[1750299998613,27.98,145.31,145.28,13.92516541]
[1750299999528,27.98,145.31,145.29,7.0419055]
[1750299999727,58.44425019,145.3,145.29,7.0419055]
[1750299999933,58.44425019,145.3,145.29,13.92469165]
[1750300000919,58.44425019,145.3,145.29,6.88278615]
[1750300001222,58.44425019,145.3,145.28,13.92497447]
[1750300001420,58.44425019,145.3,145.28,6.88306897]
[1750300002116,58.44425019,145.3,145.28,7.0419055]
[1750300003236,58.44425019,145.3,145.29,6.88278615]
[1750300011440,58.44425019,145.3,145.29,13.92469165]
[1750300012560,58.44425019,145.3,145.29,32.57434051]
[1750300013083,5.94,145.34,145.29,49.78130588]
[1750300013250,5.94,145.34,145.32,7.0419055]
[1750300014780,5.94,145.34,145.33,6.88089176]
[1750300017491,5.94,145.34,145.33,7.0419055]
[1750300019894,5.94,145.34,145.33,13.92279726]
[1750300021190,5.94,145.34,145.33,7.0419055]
[1750300021892,5.94,145.34,145.32,13.92327076]
[1750300023364,64.38425019,145.34,145.32,13.92327076]
[1750300023785,64.38425019,145.34,145.33,13.92279726]
[1750300029381,64.38425019,145.34,145.32,6.88136526]
[1750300029588,64.38425019,145.34,145.33,7.0419055]
[1750300029976,64.38425019,145.34,145.32,13.92327076]
[1750300030589,92.36425019,145.34,145.32,13.92327076]
[1750300031691,92.36425019,145.34,145.32,6.88136526]
[1750300031999,7.0419055,145.33,145.29,7.0419055]
[1750300032209,86.42425019,145.32,145.29,7.0419055]
[1750300033613,86.42425019,145.32,145.3,7.0419055]
[1750300033985,58.44425019,145.32,145.29,13.92425518]
[1750300035110,58.44425019,145.31,145.29,13.92425518]
[1750300035989,58.44425019,145.31,145.3,7.0419055]
[1750300037885,5.94,145.34,145.3,7.0419055]
[1750300038083,5.94,145.34,145.33,13.92279726]
[1750300044089,64.38425019,145.34,145.33,13.92279726]
[1750300046132,64.38425019,145.34,145.32,7.0419055]
[1750300047495,64.38425019,145.34,145.33,6.88089176]
[1750300048921,64.38425019,145.34,145.33,7.0419055]
[1750300050400,64.38425019,145.34,145.33,13.92279726]
[1750300051303,58.44425019,145.34,145.33,13.92279726]
[1750300057226,58.44425019,145.34,145.31,42.73608474]
[1750300057431,58.44425019,145.34,145.33,7.0419055]
[1750300059197,58.44425019,145.34,145.33,13.92279726]
[1750300066906,58.44425019,145.34,145.33,32.57244612]
[1750300070849,58.44425019,145.34,145.33,30.03318824]
[1750300072553,58.44425019,145.34,145.33,6.88089176]
[1750300072846,58.44425019,145.34,145.33,11.38353938]
[1750300073367,58.44425019,145.34,145.33,4.50264762]
[1750300073651,58.44425019,145.34,145.32,4.50264762]
[1750300074347,58.44425019,145.34,145.33,4.50264762]
[1750300074845,58.44425019,145.34,145.33,7.03584471]
[1750300075838,58.44425019,145.34,145.33,13.91673647]
[1750300076432,37.46811153,145.39,145.33,31.11896587]
[1750300076632,9.52811153,145.39,145.38,7.03584471]
[1750300077046,1.514,145.44,145.38,7.03584471]
[1750300077354,29.454,145.44,145.42,7.03584471]
[1750300077556,5.1006341,145.44,145.42,7.03584471]
[1750300077736,5.1006341,145.44,145.42,13.91243231]
[1750300078952,5.1006341,145.44,145.41,13.91275401]
[1750300080585,5.1006341,145.44,145.4,13.91323559]
[1750300080880,12.13647881,145.44,145.4,13.91323559]
[1750300081059,7.03584471,145.42,145.37,7.03584471]
[1750300081441,27.94,145.41,145.37,7.03584471]
[1750300082035,86.38425019,145.41,145.37,13.91484312]
[1750300082232,86.38425019,145.41,145.37,7.03584471]
[1750300082771,93.4200949,145.41,145.37,7.03584471]
[1750300082934,7.03584471,145.4,145.36,7.03584471]
[1750300083140,34.97584471,145.39,145.34,13.91613229]
[1750300084049,34.97584471,145.39,145.35,7.03584471]
[1750300085352,7.03584471,145.38,145.34,7.03584471]
[1750300086566,7.03584471,145.38,145.33,13.91654356]
[1750300087455,36.60624471,145.39,145.34,7.03584471]
[1750300087954,29.5704,145.39,145.33,13.91654356]
[1750300088157,58.44425019,145.4,145.38,7.03584471]
[1750300088471,58.44425019,145.39,145.37,7.03584471]
[1750300089562,58.44425019,145.39,145.37,13.91450742]
[1750300090067,58.44425019,145.39,145.37,6.87866271]
[1750300091492,58.44425019,145.39,145.37,13.91450742]
[1750300092855,58.44425019,145.39,145.36,7.03584471]
[1750300093270,58.44425019,145.39,145.37,7.03584471]
[1750300094281,58.44425019,145.39,145.37,13.91448848]
[1750300102589,58.44425019,145.39,145.35,44.64964886]
[1750300102769,58.44425019,145.39,145.38,7.03584471]
[1750300102970,3.5875635,145.4,145.38,51.68549357]
[1750300103169,5.92,145.42,145.39,7.03584471]
[1750300103370,5.92,145.42,145.41,7.03584471]
[1750300103793,5.92,145.42,145.38,44.64964886]
[1750300104096,5.92,145.42,145.4,7.03584471]
[1750300104574,5.92,145.42,145.4,13.91304152]
[1750300104775,12.95584471,145.42,145.38,6.87852524]
[1750300105068,12.95584471,145.42,145.38,13.91436995]
[1750300105589,5.92,145.42,145.38,13.91436995]
[1750300109085,58.44425019,145.41,145.38,13.91436995]
[1750300112606,58.44425019,145.4,145.37,7.03584471]
[1750300113591,58.44425019,145.4,145.37,13.91471113]
[1750300117989,58.44425019,145.39,145.38,7.03584471]
[1750300120010,58.44425019,145.39,145.38,13.91436995]
[1750300120404,58.44425019,145.39,145.38,6.87852524]
[1750300120607,58.44425019,145.39,145.37,7.03584471]
[1750300121303,58.44425019,145.39,145.37,13.91443426]
[1750300122912,65.4800949,145.38,145.33,25.68549357]
[1750300123091,7.03584471,145.35,145.3,6.88231245]
[1750300123301,7.03584471,145.35,145.3,13.91815716]
[1750300123611,40.89584471,145.36,145.31,7.03584471]
[1750300123820,3.5892766,145.35,145.31,7.03584471]
[1750300124514,10.62512131,145.35,145.31,7.03584471]
[1750300125212,10.62512131,145.35,145.31,13.91725126]
[1750300125388,3.5892766,145.35,145.31,13.91725126]
[1750300126198,3.5892766,145.35,145.32,7.03584471]
[1750300127515,3.5892766,145.35,145.33,6.88089176]
[1750300129821,3.5892766,145.35,145.32,13.9170223]
[1750300132721,58.44425019,145.34,145.32,13.9170223]
[1750300133705,58.44425019,145.34,145.32,6.88117759]
[1750300135017,58.44425019,145.34,145.32,7.03584471]
[1750300136016,58.44425019,145.34,145.32,6.88136526]
[1750300138421,58.44425019,145.34,145.32,7.03584471]
[1750300139744,58.44425019,145.34,145.31,7.03584471]
[1750300140422,58.44425019,145.34,145.32,6.88136526]
[1750300140631,58.44425019,145.34,145.32,13.91720997]
[1750300141127,58.44425019,145.34,145.32,6.88136526]
[1750300144032,58.44425019,145.34,145.32,13.91720997]
[1750300152523,58.44425019,145.34,145.31,18.64964886]
[1750300152719,58.44425019,145.34,145.32,7.03584471]
[1750300154046,58.44425019,145.34,145.33,6.88089176]
[1750300158340,58.44425019,145.34,145.32,6.88117757]
[1750300159339,58.44425019,145.34,145.32,4.50462758]
[1750300161130,58.44425019,145.34,145.31,4.50462758]
[1750300161330,58.44425019,145.34,145.32,6.88136526]
[1750300167944,58.44425019,145.34,145.33,4.50462758]
[1750300168458,58.44425019,145.34,145.32,11.38599284]
[1750300174170,58.44425019,145.34,145.31,4.50462758]
[1750300174345,58.44425019,145.34,145.31,6.88165437]
[1750300174857,3.58899906,145.33,145.31,11.38628195]
[1750300181659,3.58899906,145.33,145.3,11.38675142]
[1750300182062,3.58899906,145.33,145.31,4.50462758]
[1750300183182,3.58899906,145.33,145.3,6.88212384]
[1750300183183,3.58899906,145.33,145.3,11.38675142]
[1750300190785,3.58899906,145.33,145.31,4.50462758]
[1750300192308,3.58899906,145.33,145.31,11.38634805]
[1750300193998,3.58899906,145.33,145.31,4.50462758]
[1750300194182,3.58899906,145.33,145.3,11.38680416]
[1750300197896,3.58899906,145.33,145.29,77.70610927]
[1750300198102,3.58899906,145.33,145.29,82.21073685]
[1750300200306,3.58899906,145.33,145.29,77.70610927]